bitfinex/quotes_SOLUSD_20241216
["timestamp","ask_amount","ask_price","bid_price","bid_amount"]
[1734344346292,6.6487,217.23,217.14,8.06126734]
[1734344348542,6.6487,217.23,217.11,0.12549]
[1734344348543,6.6487,217.23,217.16,8.06126734]
[1734344348866,6.6487,217.23,217.17,8.06126734]
[1734344349243,6.6487,217.23,217.16,8.06126734]
[1734344349839,6.6487,217.23,217.11,0.8161952]
[1734344350034,15.8556,217.23,217.14,8.06126734]
[1734344350450,15.8556,217.23,217.15,8.06126734]
[1734344351659,15.8556,217.23,217.17,8.06126734]
[1734344352675,6.6487,217.23,217.18,8.06126734]
[1734344353258,9.2054,217.27,217.19,8.06126734]
[1734344353871,7.2329,217.28,217.2,8.06126734]
[1734344354970,7.2329,217.28,217.16,0.12549]
[1734344354971,7.2329,217.28,217.19,8.06126734]
[1734344355348,6.3058,217.28,217.2,8.06126734]
[1734344355550,6.3058,217.28,217.22,8.06126734]
[1734344355954,6.3058,217.28,217.23,8.06126734]
[1734344356277,7.1529,217.33,217.26,8.06126734]
[1734344356656,7.1529,217.33,217.25,8.06126734]
[1734344358080,6.2258,217.33,217.26,8.06126734]
[1734344358251,16.3176,217.38,217.29,8.06126734]
[1734344358468,16.3176,217.38,217.19,1.6439]
[1734344358469,16.3176,217.38,217.3,8.06126734]
[1734344358954,16.3176,217.38,217.31,8.06126734]
[1734344359372,16.3176,217.38,217.3,8.06126734]
[1734344359576,16.3176,217.38,217.29,8.06126734]
[1734344360487,16.3176,217.38,217.3,8.06126734]
[1734344361184,6.1898,217.38,217.33,8.06126734]
[1734344361363,9.199,217.42,217.33,8.06126734]
[1734344362158,7.0347,217.43,217.35,8.06126734]
[1734344362657,6.1076,217.43,217.35,8.06126734]
[1734344362968,15.3062,217.43,217.33,8.06126734]
[1734344363174,15.3062,217.43,217.34,8.06126734]
[1734344363377,15.3062,217.43,217.31,8.06126734]
[1734344363568,1.05259,217.42,217.28,20.0]
[1734344363897,1.05259,217.42,217.27,1.6041]
[1734344363898,0.12549,217.4,217.26,8.06126734]
[1734344364200,20.0,217.38,217.25,8.06126734]
[1734344364498,20.0,217.38,217.26,8.06126734]
[1734344364656,20.0,217.38,217.25,8.06126734]
[1734344364863,6.3315,217.36,217.22,1.6363]
[1734344365165,6.3315,217.36,217.25,8.06126734]
[1734344365578,15.5331,217.36,217.25,8.06126734]
[1734344366002,15.5331,217.36,217.25,12.57332754]
[1734344366286,15.5331,217.36,217.26,12.57332754]
[1734344366458,15.5331,217.36,217.27,12.57332754]
[1734344367088,15.5331,217.36,217.28,12.57332754]
[1734344367592,6.3315,217.36,217.29,12.57332754]
[1734344367891,9.1997,217.4,217.31,12.57332754]
[1734344368556,9.1997,217.4,217.32,12.57332754]
[1734344368756,9.1997,217.4,217.34,12.57332754]
[1734344369181,9.1997,217.4,217.33,12.57332754]
[1734344369482,9.1997,217.4,217.32,12.57332754]
[1734344372463,9.1997,217.4,217.33,12.57332754]
[1734344374884,9.1997,217.4,217.32,12.57332754]
[1734344375399,6.1641,217.41,217.32,12.57332754]
[1734344375568,6.1641,217.41,217.33,12.57332754]
[1734344375761,6.1641,217.41,217.35,12.57332754]
[1734344375962,9.1979,217.44,217.35,12.57332754]
[1734344378591,9.1979,217.44,217.36,12.57332754]
[1734344378809,17.257867,217.48,217.41,12.57332754]
[1734344378967,17.257867,217.48,217.43,12.57332754]
[1734344378968,8.061267,217.48,217.43,12.57332754]
[1734344379303,6.4025,217.52,217.46,12.57332754]
[1734344379594,6.4025,217.52,217.41,0.12549]
[1734344379595,6.4025,217.57,217.48,12.57332754]
[1734344379898,6.4025,217.57,217.49,12.57332754]
[1734344380300,6.4025,217.57,217.5,12.57332754]
[1734344381268,6.4025,217.57,217.49,12.57332754]
[1734344381678,6.4025,217.57,217.5,12.57332754]
[1734344381882,6.4025,217.57,217.49,12.57332754]
[1734344382083,6.4025,217.57,217.48,12.57332754]
[1734344382401,15.595,217.57,217.47,12.57332754]
[1734344382787,15.595,217.57,217.48,12.57332754]
[1734344383201,15.595,217.57,217.47,12.57332754]
[1734344383576,15.595,217.57,217.48,0.12549]
[1734344383777,15.595,217.57,217.48,12.57332754]
[1734344384689,15.595,217.57,217.46,12.57332754]
[1734344384999,15.595,217.57,217.44,12.57332754]
[1734344385205,15.595,217.57,217.43,12.57332754]
[1734344385625,15.595,217.57,217.44,12.57332754]
[1734344385793,33.9798,217.57,217.44,12.57332754]
[1734344386378,23.902374,217.56,217.43,12.57332754]
[1734344386709,23.902374,217.56,217.41,12.57332754]
[1734344386710,20.0,217.53,217.41,12.57332754]
[1734344386909,9.1945,217.52,217.41,12.57332754]
[1734344388216,9.1945,217.52,217.42,12.57332754]
[1734344389715,9.1945,217.52,217.4,12.57332754]
[1734344390582,9.1954,217.5,217.39,12.57332754]
[1734344390787,7.3494,217.49,217.39,12.57332754]
[1734344391702,9.1962,217.48,217.39,12.57332754]
[1734344392417,9.1962,217.48,217.4,12.57332754]
[1734344393293,7.3494,217.49,217.42,12.57332754]
[1734344393495,6.4223,217.49,217.44,12.57332754]
[1734344394711,20.0,217.53,217.45,12.57332754]
[1734344394712,9.1941,217.53,217.45,12.57332754]
[1734344394918,9.1941,217.53,217.47,12.57332754]
[1734344395614,9.1941,217.53,217.48,12.57332754]
[1734344395911,9.1941,217.53,217.47,12.57332754]
[1734344396115,9.1941,217.53,217.46,12.57332754]
[1734344396490,9.1941,217.53,217.47,12.57332754]
[1734344399017,9.1941,217.53,217.46,12.57332754]
[1734344399523,15.7207,217.57,217.48,12.57332754]
[1734344400108,15.7207,217.57,217.43,23.902374]
[1734344400323,15.7207,217.57,217.48,12.57332754]
[1734344400707,15.7207,217.57,217.5,12.57332754]
[1734344401237,15.7207,217.57,217.49,12.57332754]
[1734344401409,15.7207,217.57,217.46,12.57332754]
[1734344401941,15.7207,217.57,217.47,12.57332754]
[1734344402234,15.7207,217.57,217.48,12.57332754]
[1734344403823,15.7207,217.57,217.47,12.57332754]
[1734344404529,15.7207,217.57,217.44,0.25098]
[1734344404530,15.7207,217.57,217.45,12.57332754]
[1734344404705,15.7207,217.57,217.46,12.57332754]
[1734344405099,20.0,217.54,217.41,23.902374]
[1734344405408,20.0,217.54,217.41,12.57332754]
[1734344405621,20.0,217.54,217.4,12.57332754]
[1734344406009,9.1941,217.53,217.41,0.12549]
[1734344406523,0.9271,217.52,217.41,0.12549]
[1734344406899,0.9271,217.52,217.41,12.57332754]
[1734344407227,9.1949,217.51,217.42,0.12549]
[1734344407601,9.1949,217.51,217.42,12.57332754]
[1734344408541,9.1949,217.51,217.42,0.12549]
[1734344408844,9.1949,217.51,217.4,12.57332754]
[1734344408998,6.0196,217.5,217.38,12.57332754]
[1734344409624,6.0196,217.5,217.38,0.12549]
[1734344409813,20.0,217.47,217.37,12.57332754]
[1734344410211,20.0,217.47,217.34,12.57332754]
[1734344410544,6.0066,217.42,217.34,12.57332754]
[1734344410757,6.0066,217.42,217.33,12.57332754]
[1734344410911,9.1992,217.41,217.33,12.57332754]
[1734344411246,9.1992,217.41,217.34,12.57332754]
[1734344412540,9.1992,217.41,217.33,12.57332754]
[1734344412746,9.1992,217.41,217.3,12.57332754]
[1734344413103,9.1992,217.41,217.32,12.57332754]
[1734344413430,9.1992,217.41,217.33,12.57332754]
[1734344415339,9.1992,217.41,217.3,12.57332754]
[1734344415505,20.0,217.37,217.24,5.5437378]
[1734344415711,20.0,217.37,217.24,12.57332754]
[1734344416006,20.0,217.37,217.25,0.12549]
[1734344416235,20.0,217.38,217.24,12.57332754]
[1734344416735,9.2013,217.36,217.25,0.12549]
[1734344417238,9.2013,217.36,217.25,12.69881754]
[1734344417802,9.2013,217.36,217.25,0.12549]
[1734344418520,6.0733,217.35,217.25,0.12549]
[1734344418919,20.0,217.32,217.22,12.57332754]
[1734344419750,0.9271,217.31,217.19,1.6419]
[1734344420085,9.2038,217.3,217.19,12.57332754]
[1734344420233,9.2038,217.3,217.2,12.57332754]
[1734344420560,9.2038,217.3,217.21,12.69881754]
[1734344421353,9.2038,217.3,217.21,0.12549]
[1734344421945,20.0,217.27,217.21,12.69881754]
[1734344423072,20.0,217.27,217.16,0.69046407]
[1734344423073,9.2024,217.34,217.25,12.57332754]
[1734344423256,9.2024,217.34,217.27,12.57332754]
[1734344423960,6.0733,217.35,217.28,12.57332754]
[1734344424162,6.0733,217.35,217.3,12.57332754]
[1734344424738,9.2007,217.38,217.31,12.57332754]
[1734344425542,9.2007,217.38,217.27,0.25098]
[1734344425543,7.0515,217.41,217.32,12.57332754]
[1734344425750,7.0515,217.41,217.33,12.57332754]
[1734344426166,7.0515,217.41,217.29,0.25098]
[1734344426464,7.0515,217.41,217.31,12.69881754]
[1734344426465,9.1996,217.4,217.31,12.69881754]
[1734344426871,9.1996,217.4,217.32,12.57332754]
[1734344427670,7.0515,217.41,217.34,0.12549]
[1734344427845,6.1244,217.41,217.34,12.69881754]
[1734344429071,6.1244,217.41,217.34,0.12549]
[1734344430073,15.3237,217.41,217.31,12.57332754]
[1734344430234,15.3237,217.41,217.32,12.69881754]
[1734344431175,15.3237,217.41,217.32,0.12549]
[1734344431464,15.3237,217.41,217.29,12.57332754]
[1734344432439,15.3237,217.41,217.31,12.57332754]
[1734344433538,15.3237,217.41,217.33,12.69881754]
[1734344433751,15.3237,217.41,217.34,12.57332754]
[1734344434734,15.3237,217.41,217.34,0.12549]
[1734344434956,15.3237,217.41,217.31,12.57332754]
[1734344435668,15.3237,217.41,217.28,20.12549]
[1734344435669,15.3237,217.41,217.3,12.57332754]
[1734344435847,15.3237,217.41,217.29,12.57332754]
[1734344436372,15.3237,217.41,217.3,0.12549]
[1734344437155,15.3237,217.41,217.31,0.12549]
[1734344437337,15.3237,217.41,217.31,12.69881754]
[1734344438578,15.3237,217.41,217.31,0.12549]
[1734344439378,20.0,217.38,217.28,12.57332754]
[1734344439679,20.0,217.38,217.28,0.12549]
[1734344440848,9.2009,217.37,217.28,0.12549]
[1734344441254,9.2009,217.37,217.29,0.12549]
[1734344441642,9.2009,217.37,217.29,12.69881754]
[1734344441842,9.2009,217.37,217.3,12.57332754]
[1734344442461,15.3239,217.41,217.32,12.57332754]
[1734344442694,15.3239,217.41,217.33,12.57332754]
[1734344442852,6.1244,217.41,217.34,12.57332754]
[1734344443057,6.1244,217.41,217.35,12.57332754]
[1734344443284,6.1244,217.41,217.34,12.57332754]
[1734344444490,6.1244,217.41,217.36,12.57332754]
[1734344444688,9.1979,217.44,217.36,12.57332754]
[1734344444902,0.9271,217.46,217.38,12.57332754]
[1734344445104,0.9271,217.46,217.33,1.5643]
[1734344445105,0.9271,217.46,217.4,12.57332754]
[1734344445386,6.4724,217.47,217.41,12.57332754]
[1734344445580,16.2995,217.52,217.41,12.57332754]
[1734344447970,18.99335361,217.52,217.41,12.57332754]
[1734344448254,16.2995,217.52,217.43,12.57332754]
[1734344448492,7.1046,217.52,217.45,12.69881754]
[1734344448692,6.1775,217.52,217.46,12.57332754]
[1734344449502,6.1775,217.52,217.46,0.12549]
[1734344449710,6.1775,217.52,217.42,12.57332754]
[1734344449888,6.1775,217.52,217.41,12.57332754]
[1734344450210,6.1775,217.52,217.42,0.12549]
[1734344450678,6.1775,217.52,217.41,0.25098]
[1734344451295,9.1949,217.51,217.41,0.25098]
[1734344451680,9.1949,217.51,217.41,12.82430754]
[1734344451884,9.1949,217.51,217.42,0.12549]
[1734344452076,6.1775,217.52,217.45,0.12549]
[1734344452505,6.1775,217.52,217.45,12.69881754]
[1734344453511,6.1775,217.52,217.45,0.25098]
[1734344453812,6.1775,217.52,217.45,12.82430754]
[1734344453969,9.1935,217.55,217.45,12.82430754]
[1734344454169,7.443,217.57,217.42,1.5954]
[1734344454170,7.443,217.57,217.49,0.12549]
[1734344456208,6.5159,217.57,217.5,0.12549]
[1734344456410,0.9271,217.61,217.52,12.82430754]
[1734344456609,0.9271,217.61,217.53,0.25098]
[1734344456905,6.3771,217.62,217.56,20.12549]
[1734344457114,9.1886,217.67,217.56,20.12549]
[1734344457484,9.1886,217.67,217.53,0.12549]
[1734344457485,9.1886,217.67,217.53,12.69881754]
[1734344458300,9.1895,217.64,217.54,0.12549]
[1734344458817,9.1895,217.64,217.56,0.12549]
[1734344459490,20.0,217.65,217.56,12.57332754]
[1734344459696,16.4923,217.68,217.6,0.12549]
[1734344460520,16.4923,217.68,217.6,0.25098]
[1734344460814,16.4923,217.68,217.59,0.12549]
[1734344461315,16.4923,217.68,217.61,0.25098]
[1734344461316,15.5652,217.68,217.61,0.25098]
[1734344461499,6.3771,217.68,217.61,0.25098]
[1734344462296,6.3771,217.68,217.59,12.57332754]
[1734344462620,9.1882,217.67,217.59,12.57332754]
[1734344462911,9.1882,217.67,217.57,12.57332754]
[1734344463115,9.1882,217.67,217.58,0.25098]
[1734344463724,9.1882,217.67,217.56,12.57332754]
[1734344463886,9.1882,217.67,217.55,12.57332754]
[1734344464313,9.1882,217.67,217.56,12.57332754]
[1734344466221,20.0,217.64,217.53,12.57332754]
[1734344466898,20.0,217.64,217.54,12.82430754]
[1734344467317,20.0,217.64,217.55,12.57332754]
[1734344467620,9.1898,217.64,217.57,0.25098]
[1734344468091,6.3771,217.68,217.6,0.25098]
[1734344468092,15.5652,217.68,217.6,0.25098]
[1734344468890,15.5652,217.68,217.56,12.57332754]
[1734344469298,15.5652,217.68,217.57,0.25098]
[1734344472234,20.0,217.65,217.49,0.68930202]
[1734344472396,23.776884,217.64,217.49,12.57332754]
[1734344472906,20.0,217.61,217.5,0.25098]
[1734344473103,20.0,217.61,217.5,12.57332754]
[1734344473309,9.1911,217.6,217.5,12.57332754]
[1734344474039,9.1911,217.6,217.53,0.12549]
[1734344474206,9.1911,217.6,217.53,0.25098]
[1734344474398,9.1911,217.6,217.52,0.12549]
[1734344474599,9.1911,217.6,217.51,12.57332754]
[1734344475017,9.1911,217.6,217.5,12.57332754]
[1734344475229,9.1911,217.6,217.51,0.12549]
[1734344475421,9.1911,217.6,217.51,12.69881754]
[1734344475622,9.192,217.58,217.48,12.69881754]
[1734344475828,9.192,217.58,217.48,0.12549]
[1734344476533,9.192,217.58,217.47,14.19812754]
[1734344476701,9.192,217.58,217.44,6.2368]
[1734344476702,10.1191,217.58,217.44,12.57332754]
[1734344476906,20.0,217.55,217.42,12.57332754]
[1734344477228,20.0,217.55,217.45,0.12549]
[1734344477802,20.0,217.55,217.44,12.57332754]
[1734344477803,9.1937,217.54,217.44,12.57332754]
[1734344478003,9.1937,217.54,217.43,12.57332754]
[1734344478219,9.1937,217.54,217.41,14.22332754]
[1734344478439,9.1937,217.54,217.4,12.57332754]
[1734344478440,27.5811,217.54,217.4,12.57332754]
[1734344478605,6.0943,217.5,217.39,12.57332754]
[1734344479137,6.0943,217.5,217.38,12.57332754]
[1734344479301,6.0943,217.5,217.39,0.25098]
[1734344479302,9.1958,217.49,217.39,0.25098]
[1734344479496,9.1958,217.49,217.39,12.82430754]
[1734344480722,9.1958,217.49,217.39,0.25098]
[1734344481433,6.0943,217.5,217.42,12.57332754]
[1734344481636,6.0943,217.5,217.45,0.12549]
[1734344481799,9.1944,217.53,217.45,0.25098]
[1734344482000,9.1944,217.53,217.45,12.82430754]
[1734344482225,9.1944,217.53,217.47,0.12549]
[1734344482547,6.5801,217.56,217.47,0.25098]
[1734344483107,9.1932,217.55,217.46,0.25098]
[1734344483614,9.1932,217.55,217.44,12.57332754]
[1734344484206,9.1932,217.55,217.47,0.12549]
[1734344484406,1.85309831,217.61,217.54,0.12549]
[1734344484407,6.3765,217.61,217.54,0.12549]
[1734344485138,6.3765,217.61,217.47,13.26294332]
[1734344485139,6.3765,217.61,217.52,12.57332754]
[1734344485437,6.3765,217.61,217.53,0.25098]
[1734344485939,6.3765,217.61,217.54,12.82430754]
[1734344486144,6.3765,217.61,217.56,0.25098]
[1734344486703,6.3765,217.61,217.55,0.25098]
[1734344487622,6.3765,217.61,217.54,0.12549]
[1734344487809,9.1911,217.6,217.54,0.12549]
[1734344489103,9.1911,217.6,217.51,12.82430754]
[1734344489328,9.1911,217.6,217.53,0.25098]
[1734344490708,9.1911,217.6,217.5,12.57332754]
[1734344490910,9.1911,217.6,217.49,12.57332754]
[1734344492325,9.1911,217.6,217.5,0.25098]
[1734344492507,9.1911,217.6,217.52,0.25098]
[1734344492708,9.1911,217.6,217.53,0.25098]
[1734344493652,9.1911,217.6,217.52,0.25098]
[1734344494027,9.1911,217.6,217.52,12.82430754]
[1734344494573,9.1911,217.6,217.52,0.25098]
[1734344494951,9.1911,217.6,217.5,12.57332754]
[1734344496343,9.1911,217.6,217.47,43.776884]
[1734344496344,9.1911,217.6,217.49,12.57332754]
[1734344496730,9.1911,217.6,217.43,0.68950195]
[1734344496935,9.1911,217.6,217.48,0.25098]
[1734344497642,6.3765,217.61,217.46,14.23752754]
[1734344497643,9.1928,217.56,217.47,0.25098]
[1734344498353,9.1928,217.56,217.42,5.83262669]
[1734344498575,9.1928,217.56,217.43,12.57332754]
[1734344498755,9.1928,217.56,217.48,0.25098]
[1734344501259,9.1928,217.56,217.47,0.25098]
[1734344502176,9.1928,217.56,217.48,0.25098]
[1734344506664,9.1915,217.6,217.49,12.82430754]
[1734344507591,9.1915,217.6,217.53,0.12549]
[1734344507769,9.1915,217.6,217.53,12.82430754]
[1734344509071,9.1915,217.6,217.53,0.25098]
[1734344509882,10.1169,217.64,217.55,0.25098]
[1734344510205,10.1169,217.64,217.55,12.82430754]
[1734344512560,10.1169,217.64,217.55,0.25098]
[1734344513346,10.1169,217.64,217.53,12.57332754]
[1734344514871,10.1169,217.64,217.52,12.57332754]
[1734344515080,10.1169,217.64,217.51,32.57332754]
[1734344515406,10.1169,217.64,217.52,0.25098]
[1734344515897,28.4958,217.64,217.49,12.57332754]
[1734344516063,28.4958,217.64,217.48,12.57332754]
[1734344516064,20.0,217.61,217.48,12.57332754]
[1734344516269,20.0,217.61,217.49,0.25098]
[1734344516501,20.0,217.61,217.48,12.57332754]
[1734344516881,20.0,217.61,217.49,0.12549]
[1734344517308,9.1911,217.6,217.49,0.25098]
[1734344517802,9.1911,217.6,217.48,12.57332754]
[1734344517997,9.1911,217.6,217.48,0.12549]
[1734344518387,6.3711,217.59,217.48,0.12549]
[1734344518714,9.192,217.58,217.47,0.12549]
[1734344519215,9.192,217.58,217.47,0.25098]
[1734344519772,9.192,217.58,217.48,0.25098]
[1734344520913,27.576,217.58,217.41,0.68958596]
[1734344521101,20.9271,217.55,217.42,12.57332754]
[1734344521308,20.9271,217.55,217.41,12.57332754]
[1734344521980,9.1937,217.54,217.42,0.25098]
[1734344522411,9.1937,217.54,217.42,36.60119154]
[1734344522589,9.1937,217.54,217.42,12.82430754]
[1734344523277,9.1937,217.54,217.41,12.57332754]
[1734344524009,9.1937,217.54,217.41,0.25098]
[1734344524212,6.5854,217.53,217.41,0.25098]
[1734344524622,9.1945,217.52,217.38,12.57332754]
[1734344525185,9.1945,217.52,217.39,0.12549]
[1734344526497,9.1945,217.52,217.39,0.25098]
[1734344526685,9.1945,217.52,217.39,0.12549]
[1734344527510,9.1945,217.52,217.42,0.25098]
[1734344528091,9.1945,217.52,217.41,0.25098]
[1734344528497,27.5836,217.52,217.37,12.57332754]
[1734344528694,20.0,217.49,217.37,12.57332754]
[1734344528905,20.0,217.49,217.37,12.82430754]
[1734344529208,20.0,217.49,217.39,0.25098]
[1734344529717,9.1962,217.48,217.37,12.82430754]
[1734344530512,9.1962,217.48,217.37,0.25098]
[1734344532104,9.1962,217.48,217.36,8.28870288]
[1734344532295,0.9271,217.47,217.36,0.25098]
[1734344532487,6.2274,217.46,217.34,9.60612288]
[1734344532892,6.2274,217.46,217.35,0.25098]
[1734344533417,15.4249,217.46,217.35,0.25098]
[1734344533614,33.819,217.46,217.31,8.03772288]
[1734344533823,20.0,217.43,217.28,1.6515]
[1734344534182,20.0,217.43,217.26,1.12831761]
[1734344534183,6.6476,217.42,217.26,1.12831761]
[1734344534385,0.9271,217.38,217.26,0.43821728]
[1734344534618,0.9271,217.38,217.26,8.47594016]
[1734344534919,0.9271,217.38,217.26,0.43821728]
[1734344535293,9.2025,217.33,217.26,0.43821728]
[1734344535858,20.0,217.3,217.26,0.43821728]
[1734344535993,6.6476,217.29,217.26,0.43821728]
[1734344536190,6.6476,217.29,217.26,1.728e-05]
[1734344536191,20.0,217.27,217.26,1.728e-05]
[1734344537315,29.2051,217.27,217.26,1.728e-05]
[1734344537518,9.2051,217.27,217.26,1.728e-05]
[1734344538529,6.6476,217.29,217.26,1.728e-05]
[1734344541535,6.282,217.34,217.26,1.728e-05]
[1734344541835,0.25098,217.33,217.26,1.728e-05]
[1734344542705,20.0,217.31,217.21,0.2058368]
[1734344542904,0.12549,217.3,217.21,0.2058368]
[1734344543113,20.0,217.26,217.21,0.2058368]
[1734344543315,9.2059,217.25,217.21,0.2058368]
[1734344543629,20.0,217.22,217.21,3.68e-05]
[1734344544630,20.0,217.22,217.06,12.58173384]
[1734344544808,6.5837,217.2,217.06,12.58173384]
[1734344545001,6.5837,217.2,217.07,12.58173384]
[1734344545002,20.0,217.17,217.07,12.58173384]
[1734344545219,6.5837,217.2,217.08,12.83271384]
[1734344545518,15.7922,217.2,217.09,12.58173384]
[1734344546113,15.7922,217.2,217.04,2.2055541]
[1734344546114,6.5837,217.2,217.13,12.58173384]
[1734344546621,6.5837,217.2,217.04,2.20531872]
[1734344546942,6.5837,217.2,217.08,12.58173384]
[1734344547112,6.5837,217.2,217.09,12.58173384]
[1734344547815,9.2085,217.19,217.08,23.776884]
[1734344548006,9.2085,217.19,217.04,2.20545535]
[1734344548007,9.2085,217.19,217.06,12.58173384]
[1734344548210,9.2085,217.19,217.05,12.58173384]
[1734344548648,20.0,217.16,217.06,0.25098]
[1734344549147,20.0,217.16,217.07,12.58173384]
[1734344549639,9.2085,217.19,217.08,23.776884]
[1734344550142,9.2085,217.19,217.07,12.58173384]
[1734344550652,9.2085,217.19,217.08,23.776884]
[1734344551416,9.2085,217.19,217.08,36.35861784]
[1734344551806,9.2085,217.19,217.1,12.58173384]
[1734344552011,9.2085,217.19,217.09,0.25098]
[1734344552012,6.5837,217.2,217.11,36.35861784]
[1734344552253,6.5837,217.2,217.11,23.776884]
[1734344552413,15.7919,217.2,217.09,23.776884]
[1734344552747,15.7919,217.2,217.08,23.776884]
[1734344553121,15.7919,217.2,217.07,23.776884]
[1734344553449,20.0,217.17,217.07,23.776884]
[1734344554323,9.2097,217.16,217.07,23.776884]
[1734344554917,9.2097,217.16,217.05,12.58173384]
[1734344555746,9.2097,217.16,217.06,12.58173384]
[1734344555918,15.792,217.2,217.09,12.58173384]
[1734344556511,15.792,217.2,217.1,23.776884]
[1734344556944,15.792,217.2,217.08,24.027864]
[1734344558134,15.792,217.2,217.08,23.902374]
[1734344558374,15.792,217.2,217.08,36.48410784]
[1734344558544,15.792,217.2,217.09,0.12549]
[1734344559433,15.792,217.2,217.08,36.48410784]
[1734344559757,29.2096,217.17,217.07,23.776884]
[1734344559954,29.2096,217.17,217.05,36.35861784]
[1734344560133,29.2096,217.17,217.04,21.5146]
[1734344560338,29.2096,217.17,217.05,12.58173384]
[1734344561152,29.2096,217.17,217.05,0.25098]
[1734344561518,29.2096,217.17,217.07,24.027864]
[1734344561717,9.2096,217.17,217.07,36.60959784]
[1734344561941,6.5837,217.2,217.11,12.58173384]
[1734344562143,6.5837,217.2,217.12,23.776884]
[1734344563386,6.5837,217.2,217.12,36.35861784]
[1734344563529,6.5837,217.2,217.13,0.12549]
[1734344563730,15.5151,217.25,217.16,23.902374]
[1734344565464,15.5151,217.25,217.16,36.48410784]
[1734344565759,6.3087,217.25,217.17,0.12549]
[1734344566059,6.286,217.31,217.21,23.776884]
[1734344566432,15.4894,217.31,217.21,23.776884]
[1734344566764,18.4034,217.35,217.24,24.027864]
[1734344566765,9.2021,217.35,217.24,24.027864]
[1734344567444,6.2351,217.36,217.24,36.60959784]
[1734344567646,6.2351,217.36,217.24,0.25098]
[1734344568238,6.2351,217.36,217.25,23.776884]
[1734344568451,6.2351,217.36,217.24,0.25098]
[1734344568656,6.2351,217.36,217.24,12.83271384]
[1734344568858,6.2351,217.36,217.25,23.776884]
[1734344569062,6.2351,217.36,217.26,0.25098]
[1734344569266,15.4365,217.36,217.26,0.25098]
[1734344570086,15.4365,217.36,217.26,0.12549]
[1734344570385,15.4365,217.36,217.26,0.25098]
[1734344571155,15.4365,217.36,217.25,23.776884]
[1734344571547,15.4365,217.36,217.23,24.027864]
[1734344572096,15.4365,217.36,217.23,36.60959784]
[1734344574260,15.4365,217.36,217.23,24.027864]
[1734344574556,20.0,217.33,217.23,0.25098]
[1734344575666,20.0,217.33,217.22,23.776884]
[1734344575858,29.2029,217.33,217.21,23.776884]
[1734344576794,29.2029,217.33,217.22,0.25098]
[1734344576955,29.2029,217.33,217.22,12.83271384]
[1734344577287,29.2029,217.33,217.24,0.25098]
[1734344577577,9.2029,217.33,217.24,0.25098]
[1734344579283,9.2029,217.33,217.21,23.776884]
[1734344579654,9.2029,217.33,217.2,24.027864]
[1734344580319,9.2029,217.33,217.23,36.60959784]
[1734344580497,6.2351,217.36,217.24,12.58173384]
[1734344580657,6.2351,217.36,217.25,23.776884]
[1734344581077,6.2351,217.36,217.26,23.776884]
[1734344581278,6.2351,217.36,217.25,24.027864]
[1734344581476,6.2351,217.36,217.27,24.027864]
[1734344581691,6.2351,217.36,217.29,12.83271384]
[1734344581860,9.1995,217.41,217.3,12.58173384]
[1734344581861,15.2484,217.41,217.3,12.58173384]
[1734344582063,15.2484,217.41,217.31,23.776884]
[1734344582575,15.2484,217.41,217.3,23.776884]
[1734344583457,15.2484,217.41,217.29,24.027864]
[1734344583659,15.2484,217.41,217.27,23.776884]
[1734344583855,15.2484,217.41,217.29,23.776884]
[1734344584082,15.2484,217.41,217.28,0.25098]
[1734344584283,33.6468,217.41,217.27,23.776884]
[1734344584482,20.0,217.38,217.25,12.58173384]
[1734344584687,20.0,217.38,217.24,12.58173384]
[1734344584888,20.0,217.38,217.22,12.58173384]
[1734344585265,20.0,217.38,217.23,12.58173384]
[1734344585574,20.0,217.34,217.23,12.58173384]
[1734344585891,20.0,217.34,217.24,12.58173384]
[1734344586097,20.0,217.34,217.22,0.25098]
[1734344586397,20.0,217.34,217.22,12.83271384]